[Event "EYCC Girls U12 2018"]
[Site "Riga"]
[Date "2018.08.26"]
[Round "6"]
[White "Zvereva, Margarita"]
[Black "Dakic, Marta"]
[Result "1-0"]
[ECO "B76"]
[WhiteElo "1898"]
[BlackElo "1614"]
[Annotator "NA"]
[PlyCount "97"]
[EventDate "2018.08.20"]
[EventType "swiss"]
[EventCountry "LAT"]
[SourceTitle "playchess.com"]
[Source "ChessBase"]
[SourceQuality "1"]
[TimeControl "40/5400+30:1800+30"]

1. e4 {[%emt 0:00:00]} c5 {[%emt 0:00:00]} 2. Nf3 {[%emt 0:00:00]} d6 {[%emt 0:00:00]} 3. d4 {[%emt 0:00:00]} cxd4 {[%emt 0:00:00]} 4. Nxd4 {[%emt 0:00:00]} Nf6 {[%emt 0:00:00]} 5. Nc3 {[%emt 0:00:00]} g6 {[%emt 0:00:06]} 6. Be3 {[%emt 0:00:00]} Bg7 {[%emt 0:00:12]} 7. f3 {[%emt 0:00:02]} O-O {[%emt 0:00:46]} 8. Qd2 {[%emt 0:00:04]} Nc6 {[%emt 0:00:12]} 9. O-O-O {[%emt 0:00:48]} Bd7 {[%emt 0:00:55]} 10. Kb1 {[%emt 0:02:02]} a6 {[%emt 0:02:16]} 11. h4 {[%emt 0:04:08]} Rc8 {[%emt 0:01:26]} 12. Nd5 {[%emt 0:11:07]} Nxd5 {[%emt 0:05:34]} 13. exd5 {[%emt 0:00:13]} Ne5 {[%emt 0:03:17]} 14. h5 {[%emt 0:02:18]} Nc4 {[%emt 0:04:49]} 15. Bxc4 {[%emt 0:00:08]} Rxc4 {[%emt 0:00:05]} 16. hxg6 {[%emt 0:01:31]} hxg6 {[%emt 0:00:23]} 17. g4 {[%emt 0:17:39]} Re8 {[%emt 0:18:49]} 18. Qh2 {[%emt 0:01:52]} Rxd4 {[%emt 0:12:28]} 19. Bxd4 {[%emt 0:00:38]} f6 {[%emt 0:02:01]} 20. Qh7+ {[%emt 0:01:32]} Kf7 {[%emt 0:01:36]} 21. Rh6 {[%emt 0:00:18]} Rg8 {[%emt 0:01:01]} 22. Qxg6+ {[%emt 0:01:00]} Kf8 {[%emt 0:00:10]} 23. Rhh1 {[%emt 0:00:30]} Be8 {[%emt 0:01:33]} 24. Qe4 {[%emt 0:01:02]} Bf7 {[%emt 0:02:12]} 25. Rde1 {[%emt 0:01:53]} Qd7 {[%emt 0:01:12]} 26. Re2 {[%emt 0:02:37]} Ke8 {[%emt 0:01:40]} 27. Rhe1 {[%emt 0:00:37]} Kd8 {[%emt 0:00:40]} 28. Bb6+ {[%emt 0:01:15]} Ke8 {[%emt 0:01:49]} 29. Qxe7+ {[%emt 0:02:24]} Qxe7 {[%emt 0:00:06]} 30. Rxe7+ {[%emt 0:00:04]} Kf8 {[%emt 0:00:08]} 31. Rxb7 {[%emt 0:00:50]} Bxd5 {[%emt 0:01:13]} 32. Rb8+ {[%emt 0:00:14]} Kf7 {[%emt 0:00:06]} 33. Rxg8 {[%emt 0:00:07]} Kxg8 {[%emt 0:00:05]} 34. Re3 {[%emt 0:00:27]} Bf8 {[%emt 0:00:30]} 35. Bc7 {[%emt 0:01:17]} Bc6 {[%emt 0:01:06]} 36. Bd8 {[%emt 0:03:44]} Kf7 {[%emt 0:00:56]} 37. g5 {[%emt 0:00:48]} fxg5 {[%emt 0:00:29]} 38. Bxg5 {[%emt 0:00:08]} Kg6 {[%emt 0:03:25]} 39. f4 {[%emt 0:00:31]} Kf5 {[%emt 0:01:10]} 40. Rc3 {[%emt 0:00:00]} Bd7 {[%emt 0:00:00]} 41. Rc7 {[%emt 0:01:59]} Be6 {[%emt 0:02:53]} 42. Rc6 {[%emt 0:00:28]} Bd7 {[%emt 0:02:02]} 43. Rxa6 {[%emt 0:00:18]} Ke6 {[%emt 0:00:52]} 44. a4 {[%emt 0:00:23]} Bg7 {[%emt 0:00:23]} 45. a5 {[%emt 0:00:17]} Bd4 {[%emt 0:00:45]} 46. Ra8 {[%emt 0:00:52]} Bc6 {[%emt 0:00:44]} 47. Rb8 {[%emt 0:00:49]} Kd7 {[%emt 0:01:47]} 48. f5 {[%emt 0:01:03]} Be4 {[%emt 0:02:15]} 49. Rb4 {[%emt 0:00:32]} 1-0

[Event "EYCC Girls U12 2018"]
[Site "Riga"]
[Date "2018.08.26"]
[Round "6"]
[White "Kozachenko, Maria"]
[Black "Bashylina, Luisa"]
[Result "0-1"]
[ECO "B43"]
[WhiteElo "1792"]
[BlackElo "1817"]
[Annotator "NA"]
[PlyCount "90"]
[EventDate "2018.08.20"]
[EventType "swiss"]
[EventCountry "LAT"]
[SourceTitle "playchess.com"]
[Source "ChessBase"]
[SourceQuality "1"]
[TimeControl "40/5400+30:1800+30"]

1. e4 {[%emt 0:00:00]} c5 {[%emt 0:00:00]} 2. Nf3 {[%emt 0:00:00]} e6 {[%emt 0:00:14]} 3. d4 {[%emt 0:00:00]} cxd4 {[%emt 0:00:05]} 4. Nxd4 {[%emt 0:00:00]} a6 {[%emt 0:00:17]} 5. Nc3 {[%emt 0:00:18]} Qc7 {[%emt 0:00:06]} 6. Bd3 {[%emt 0:00:23]} Nc6 {[%emt 0:01:41]} 7. Nb3 {[%emt 0:06:10]} Ne5 {[%emt 0:08:58]} 8. f4 {[%emt 0:05:45]} Nxd3+ {[%emt 0:02:29]} 9. Qxd3 {[%emt 0:02:13]} b5 {[%emt 0:03:57]} 10. O-O {[%emt 0:05:01]} Bb7 {[%emt 0:01:43]} 11. Be3 {[%emt 0:06:00]} Nf6 {[%emt 0:01:48]} 12. e5 {[%emt 0:05:16]} Nd5 {[%emt 0:00:14]} 13. Nxd5 {[%emt 0:01:07]} Bxd5 {[%emt 0:00:06]} 14. Nd2 {[%emt 0:01:31]} Rc8 {[%emt 0:07:22]} 15. Rfc1 {[%emt 0:06:46]} d6 {[%emt 0:10:00]} 16. Bd4 {[%emt 0:06:01]} dxe5 {[%emt 0:07:39]} 17. fxe5 {[%emt 0:00:45]} Be7 {[%emt 0:08:43]} 18. a4 {[%emt 0:07:18]} Qc6 {[%emt 0:08:29]} 19. axb5 {[%emt 0:03:01]} axb5 {[%emt 0:00:35]} 20. Qe2 {[%emt 0:01:37]} O-O {[%emt 0:01:57]} 21. b3 {[%emt 0:06:25]} Bg5 {[%emt 0:12:14]} 22. g3 {[%emt 0:09:11]} Be7 {[%emt 0:07:57]} 23. h3 {[%emt 0:06:06]} Bc5 {[%emt 0:03:13]} 24. Bf2 {[%emt 0:04:04]} Bxf2+ {[%emt 0:03:41]} 25. Qxf2 {[%emt 0:00:27]} Qc3 {[%emt 0:00:36]} 26. Nf1 {[%emt 0:05:12]} Qxe5 {[%emt 0:00:43]} 27. Qe3 {[%emt 0:00:52]} Qf5 {[%emt 0:02:25]} 28. g4 {[%emt 0:02:13]} Qg6 {[%emt 0:00:18]} 29. Qe2 {[%emt 0:01:10]} b4 {[%emt 0:03:35]} 30. Ne3 {[%emt 0:04:23]} Qe4 {[%emt 0:00:55]} 31. Kf2 {[%emt 0:00:27]} Qf4+ {[%emt 0:00:29]} 32. Ke1 {[%emt 0:00:39]} Qg3+ {[%emt 0:00:29]} 33. Qf2 {[%emt 0:00:17]} Qxh3 {[%emt 0:00:17]} 34. Rd1 {[%emt 0:00:48]} Qh1+ {[%emt 0:01:06]} 35. Kd2 {[%emt 0:00:55]} Qe4 {[%emt 0:00:18]} 36. Rab1 {[%emt 0:01:13]} Rfd8 {[%emt 0:00:27]} 37. Kc1 {[%emt 0:00:28]} Rc3 {[%emt 0:01:19]} 38. Nxd5 {[%emt 0:01:17]} exd5 {[%emt 0:01:15]} 39. Rf1 {[%emt 0:00:24]} Qg6 {[%emt 0:00:18]} 40. Rb2 {[%emt 0:00:00]} d4 {[%emt 0:00:00]} 41. Re1 {[%emt 0:01:40]} d3 {[%emt 0:02:56]} 42. Qd4 {[%emt 0:00:13]} Rdc8 {[%emt 0:01:57]} 43. Qe3 {[%emt 0:01:36]} h6 {[%emt 0:01:47]} 44. Kb1 {[%emt 0:00:37]} dxc2+ {[%emt 0:00:07]} 45. Kc1 {[%emt 0:00:07]} Rxe3 {[%emt 0:00:09]} 0-1

[Event "EYCC Girls U12 2018"]
[Site "Riga"]
[Date "2018.08.26"]
[Round "6"]
[White "Shubenkova, Veronika"]
[Black "Karmanova, Olga Dm"]
[Result "1-0"]
[ECO "A41"]
[WhiteElo "1700"]
[BlackElo "1730"]
[Annotator "NA"]
[PlyCount "120"]
[EventDate "2018.08.20"]
[EventType "swiss"]
[EventCountry "LAT"]
[SourceTitle "playchess.com"]
[Source "ChessBase"]
[SourceQuality "1"]
[TimeControl "40/5400+30:1800+30"]

1. d4 {[%emt 0:01:34]} d6 {[%emt 0:00:00]} 2. e3 {[%emt 0:03:04]} g6 {[%emt 0:00:37]} 3. c4 {[%emt 0:04:08]} Bg7 {[%emt 0:01:37]} 4. Nc3 {[%emt 0:02:16]} Nd7 {[%emt 0:04:02]} 5. Nf3 {[%emt 0:07:01]} Nh6 {[%emt 0:01:39]} 6. Be2 {[%emt 0:02:39]} O-O {[%emt 0:01:08]} 7. O-O {[%emt 0:03:29]} f5 {[%emt 0:00:28]} 8. a3 {[%emt 0:13:12]} e5 {[%emt 0:01:32]} 9. dxe5 {[%emt 0:00:55]} dxe5 {[%emt 0:00:39]} 10. e4 {[%emt 0:01:53]} f4 {[%emt 0:00:37]} 11. b4 {[%emt 0:01:05]} Nf7 {[%emt 0:00:36]} 12. b5 {[%emt 0:02:10]} g5 {[%emt 0:01:38]} 13. Ne1 {[%emt 0:00:37]} Nd6 {[%emt 0:03:42]} 14. a4 {[%emt 0:01:56]} Nf6 {[%emt 0:02:26]} 15. f3 {[%emt 0:00:57]} g4 {[%emt 0:01:20]} 16. c5 {[%emt 0:01:10]} gxf3 {[%emt 0:00:19]} 17. Bxf3 {[%emt 0:00:10]} Nf7 {[%emt 0:00:55]} 18. Ba3 {[%emt 0:03:07]} c6 {[%emt 0:01:29]} 19. Qxd8 {[%emt 0:02:16]} Rxd8 {[%emt 0:00:31]} 20. Nc2 {[%emt 0:02:41]} Rd3 {[%emt 0:04:57]} 21. Bb4 {[%emt 0:01:34]} Bg4 {[%emt 0:02:41]} 22. Rad1 {[%emt 0:05:10]} Rad8 {[%emt 0:01:42]} 23. Rxd3 {[%emt 0:02:37]} Rxd3 {[%emt 0:00:42]} 24. Rd1 {[%emt 0:06:38]} Rxd1+ {[%emt 0:01:06]} 25. Nxd1 {[%emt 0:00:07]} Ng5 {[%emt 0:01:33]} 26. Bxg4 {[%emt 0:05:14]} Nxg4 {[%emt 0:00:22]} 27. bxc6 {[%emt 0:00:52]} bxc6 {[%emt 0:00:06]} 28. Nf2 {[%emt 0:04:15]} Nf6 {[%emt 0:02:45]} 29. Be1 {[%emt 0:00:29]} Ngxe4 {[%emt 0:01:01]} 30. Nb4 {[%emt 0:02:58]} Nxc5 {[%emt 0:00:27]} 31. a5 {[%emt 0:00:42]} e4 {[%emt 0:01:58]} 32. Nxc6 {[%emt 0:00:45]} e3 {[%emt 0:00:35]} 33. Nh3 {[%emt 0:02:17]} Nd3 {[%emt 0:00:38]} 34. Kf1 {[%emt 0:01:01]} Nd5 {[%emt 0:01:21]} 35. Nxa7 {[%emt 0:01:22]} Nc1 {[%emt 0:09:50]} 36. Ng1 {[%emt 0:02:49]} Nc3 {[%emt 0:05:32]} 37. Bxc3 {[%emt 0:00:20]} Bxc3 {[%emt 0:00:07]} 38. a6 {[%emt 0:00:04]} f3 {[%emt 0:10:31]} 39. gxf3 {[%emt 0:00:29]} Bd4 {[%emt 0:03:25]} 40. Nb5 {[%emt 0:00:00]} Bc5 {[%emt 0:00:00]} 41. a7 {[%emt 0:00:27]} Bxa7 {[%emt 0:00:50]} 42. Nxa7 {[%emt 0:00:04]} Kf7 {[%emt 0:02:01]} 43. Nb5 {[%emt 0:00:27]} Ke6 {[%emt 0:01:29]} 44. Ne2 {[%emt 0:00:29]} Nd3 {[%emt 0:00:21]} 45. Nbc3 {[%emt 0:00:23]} Ne5 {[%emt 0:01:21]} 46. Kg2 {[%emt 0:00:22]} Kf5 {[%emt 0:01:20]} 47. Nd1 {[%emt 0:01:06]} Nc4 {[%emt 0:00:16]} 48. Kg3 {[%emt 0:00:15]} h6 {[%emt 0:00:39]} 49. Ndc3 {[%emt 0:00:36]} h5 {[%emt 0:00:34]} 50. h4 {[%emt 0:00:38]} Nd2 {[%emt 0:01:26]} 51. Kg2 {[%emt 0:01:06]} Nc4 {[%emt 0:00:13]} 52. Ng3+ {[%emt 0:00:07]} Kg6 {[%emt 0:00:26]} 53. Nce2 {[%emt 0:00:10]} Nd2 {[%emt 0:00:45]} 54. Nf4+ {[%emt 0:00:11]} Kh6 {[%emt 0:00:36]} 55. Nf5+ {[%emt 0:00:07]} Kh7 {[%emt 0:00:07]} 56. Nxe3 {[%emt 0:00:04]} Kg7 {[%emt 0:00:31]} 57. Nxh5+ {[%emt 0:00:20]} Kh6 {[%emt 0:00:26]} 58. Ng3 {[%emt 0:00:03]} Nb3 {[%emt 0:00:27]} 59. h5 {[%emt 0:00:05]} Nc5 {[%emt 0:00:09]} 60. Ng4+ {[%emt 0:00:12]} Kh7 1-0

[Event "EYCC Girls U12 2018"]
[Site "Riga"]
[Date "2018.08.26"]
[Round "6"]
[White "Lomakina, Anzhelika"]
[Black "Van Foreest, Machteld"]
[Result "0-1"]
[ECO "C00"]
[WhiteElo "1627"]
[BlackElo "2135"]
[Annotator "NA"]
[PlyCount "104"]
[EventDate "2018.08.20"]
[EventType "swiss"]
[EventCountry "LAT"]
[SourceTitle "playchess.com"]
[Source "ChessBase"]
[SourceQuality "1"]
[TimeControl "40/5400+30:1800+30"]

1. e4 {[%emt 0:00:00]} e6 {[%emt 0:00:00]} 2. d4 {[%emt 0:00:00]} d5 {[%emt 0:00:00]} 3. Bd3 {[%emt 0:00:08]} Nf6 {[%emt 0:02:49]} 4. e5 {[%emt 0:06:47]} Nfd7 {[%emt 0:00:22]} 5. Ne2 {[%emt 0:04:29]} c5 {[%emt 0:01:46]} 6. c3 {[%emt 0:00:58]} Nc6 {[%emt 0:00:43]} 7. O-O {[%emt 0:01:34]} Qb6 {[%emt 0:02:23]} 8. Bc2 {[%emt 0:09:47]} Be7 {[%emt 0:05:46]} 9. f4 {[%emt 0:19:13]} cxd4 {[%emt 0:01:16]} 10. cxd4 {[%emt 0:00:37]} Nb4 {[%emt 0:13:13]} 11. Bb3 {[%emt 0:07:14]} f5 {[%emt 0:05:31]} 12. Nbc3 {[%emt 0:06:52]} Qa6 {[%emt 0:03:29]} 13. Ng3 {[%emt 0:07:57]} O-O {[%emt 0:02:54]} 14. Be3 {[%emt 0:04:32]} Bh4 {[%emt 0:05:09]} 15. a3 {[%emt 0:08:07]} Nc6 {[%emt 0:01:46]} 16. Rc1 {[%emt 0:01:17]} Na5 {[%emt 0:04:29]} 17. Ba2 {[%emt 0:08:57]} Nb6 {[%emt 0:02:47]} 18. b3 {[%emt 0:01:57]} Nc6 {[%emt 0:07:02]} 19. Nb1 {[%emt 0:05:12]} Nd7 {[%emt 0:02:30]} 20. b4 {[%emt 0:01:05]} Nxb4 {[%emt 0:02:21]} 21. Bb3 {[%emt 0:02:12]} Nc6 {[%emt 0:00:50]} 22. Qc2 {[%emt 0:01:26]} Be7 {[%emt 0:00:59]} 23. Ba4 {[%emt 0:00:29]} Na5 {[%emt 0:02:49]} 24. Nd2 {[%emt 0:00:37]} b5 {[%emt 0:01:20]} 25. Bb3 {[%emt 0:00:27]} Nc4 {[%emt 0:00:46]} 26. Bxc4 {[%emt 0:00:22]} bxc4 {[%emt 0:01:38]} 27. Nb1 {[%emt 0:00:37]} Bxa3 {[%emt 0:00:50]} 28. Nxa3 {[%emt 0:00:35]} Qxa3 {[%emt 0:00:05]} 29. Bd2 {[%emt 0:00:26]} Nb6 {[%emt 0:02:07]} 30. Rb1 {[%emt 0:00:30]} Re8 {[%emt 0:01:29]} 31. Ne2 {[%emt 0:00:34]} Bd7 {[%emt 0:03:31]} 32. Nc3 {[%emt 0:00:30]} Reb8 {[%emt 0:03:25]} 33. Rf3 {[%emt 0:00:25]} Qe7 {[%emt 0:02:43]} 34. Rff1 {[%emt 0:00:30]} a5 {[%emt 0:03:46]} 35. Nb5 {[%emt 0:00:33]} a4 {[%emt 0:02:44]} 36. Bb4 Qd8 {[%emt 0:01:16]} 37. Bd6 {[%emt 0:00:59]} Rb7 {[%emt 0:01:24]} 38. Ba3 {[%emt 0:00:31]} Nc8 {[%emt 0:00:55]} 39. Nd6 {[%emt 0:00:32]} Rb3 {[%emt 0:03:17]} 40. Rxb3 axb3 {[%emt 0:00:00]} 41. Qb2 {[%emt 0:02:40]} Nxd6 {[%emt 0:09:20]} 42. exd6 {[%emt 0:06:48]} Qa5 {[%emt 0:00:44]} 43. Ra1 {[%emt 0:02:30]} Ba4 {[%emt 0:01:40]} 44. Rc1 {[%emt 0:04:17]} Bd7 {[%emt 0:04:55]} 45. Ra1 {[%emt 0:01:00]} Qb5 {[%emt 0:00:38]} 46. Rb1 {[%emt 0:12:27]} c3 {[%emt 0:06:05]} 47. Qxb3 {[%emt 0:01:35]} Qxb3 {[%emt 0:00:54]} 48. Rxb3 {[%emt 0:00:02]} c2 {[%emt 0:00:10]} 49. Bb2 {[%emt 0:01:23]} Ra1+ {[%emt 0:02:35]} 50. Kf2 {[%emt 0:00:10]} Rb1 {[%emt 0:00:25]} 51. Ke3 {[%emt 0:03:07]} Rxb2 {[%emt 0:01:29]} 52. Rc3 {[%emt 0:00:10]} Rb3 {[%emt 0:00:09]} 0-1

[Event "EYCC Girls U12 2018"]
[Site "Riga"]
[Date "2018.08.27"]
[Round "7"]
[White "Van Foreest, Machteld"]
[Black "Tarasenka, Aliaksandra"]
[Result "0-1"]
[ECO "B56"]
[WhiteElo "2135"]
[BlackElo "1747"]
[Annotator "NA"]
[PlyCount "70"]
[EventDate "2018.08.20"]
[EventType "swiss"]
[EventCountry "LAT"]
[SourceTitle "playchess.com"]
[Source "ChessBase"]
[SourceQuality "1"]
[TimeControl "40/5400+30:1800+30"]

1. e4 {[%emt 0:00:00]} c5 {[%emt 0:00:00]} 2. Nf3 {[%emt 0:00:00]} d6 {[%emt 0:00:00]} 3. d4 {[%emt 0:00:00]} cxd4 {[%emt 0:00:00]} 4. Nxd4 {[%emt 0:00:00]} Nf6 {[%emt 0:00:00]} 5. Nc3 {[%emt 0:00:00]} e5 {[%emt 0:00:00]} 6. Nde2 {[%emt 0:06:04]} Be7 {[%emt 0:00:53]} 7. g3 {[%emt 0:03:31]} O-O {[%emt 0:00:37]} 8. Bg2 {[%emt 0:02:17]} Be6 {[%emt 0:00:30]} 9. O-O {[%emt 0:00:51]} Nc6 {[%emt 0:00:25]} 10. Nd5 {[%emt 0:03:40] B56: Sizilianisch (Abweichung von Sozin- und Richter/Rauser-Variante)} (10. h3 Rc8 11. g4 h6 12. Ng3 a6 13. Nf5 b5 14. Nd5 Bxf5 15. Nxe7+ Qxe7 16. exf5 d5 17. c3 e4 18. Bf4 {0-1 (42) Fontaine,R (2563)-Gupta,A (2610) chess.com INT 2018}) 10... Bxd5 {[%emt 0:02:31]} 11. exd5 {[%emt 0:01:22]} Nb8 {[%emt 0:00:27]} 12. c4 {[%emt 0:04:08]} Nbd7 {[%emt 0:01:29]} 13. Nc3 {[%emt 0:03:20]} Rc8 {[%emt 0:02:04]} 14. b3 {[%emt 0:01:26]} a6 {[%emt 0:05:04]} 15. a4 {[%emt 0:04:58]} Ne8 $146 {[%emt 0:09:52]} ({Vorgänger:} 15... b6 16. Bb2 Re8 17. Qc2 Bf8 {½-½ (80) Chandra,A (2155)-Klasan,V (2355) Novi Sad 2012}) 16. Bh3 {[%emt 0:03:26]} f5 {[%emt 0:04:11]} 17. a5 {[%emt 0:11:29]} g6 {[%emt 0:08:01]} 18. Bh6 {[%emt 0:05:12]} Ng7 {[%emt 0:00:46]} 19. Qc2 {[%emt 0:02:03]} Bg5 {[%emt 0:03:55]} 20. Bxg5 {[%emt 0:05:06]} Qxg5 {[%emt 0:00:06]} 21. Qe2 $15 {[%emt 0:02:04]} Nh5 {[%emt 0:03:48]} 22. Kh1 {[%emt 0:02:51]} Rce8 {[%emt 0:12:39]} 23. b4 e4 {[%emt 0:01:50]} 24. Rad1 {[%emt 0:10:00]} Qh6 {[%emt 0:04:46]} 25. Bg2 {[%emt 0:02:43]} Ne5 {[%emt 0:11:56]} 26. Kg1 {[%emt 0:08:04]} f4 {[%emt 0:04:53]} 27. Bxe4 {[%emt 0:04:29]} f3 {[%emt 0:00:59]} 28. Qe3 {[%emt 0:00:38]} Nf4 {[%emt 0:02:42]} 29. h4 {[%emt 0:02:14]} Qh5 {[%emt 0:02:14]} 30. c5 {[%emt 0:05:24]} Qg4 {[%emt 0:00:47]} 31. cxd6 {[%emt 0:00:57]} Qh3 {[%emt 0:00:24]} 32. Bxf3 {[%emt 0:00:06]} Ng4 {[%emt 0:00:24]} 33. Rfe1 {[%emt 0:00:55]} Qh2+ {[%emt 0:00:44]} 34. Kf1 {[%emt 0:00:03]} Rxe3 {[%emt 0:00:10]} 35. Re2 {[%emt 0:00:56]} Rxe2 {[%emt 0:00:15]} 0-1

[Event "EYCC Girls U12 2018"]
[Site "Riga"]
[Date "2018.08.27"]
[Round "7"]
[White "Bashylina, Luisa"]
[Black "Shubenkova, Veronika"]
[Result "1-0"]
[ECO "B43"]
[WhiteElo "1817"]
[BlackElo "1700"]
[Annotator "NA"]
[PlyCount "107"]
[EventDate "2018.08.20"]
[EventType "swiss"]
[EventCountry "LAT"]
[SourceTitle "playchess.com"]
[Source "ChessBase"]
[SourceQuality "1"]
[TimeControl "40/5400+30:1800+30"]

1. e4 {[%emt 0:00:00]} c5 {[%emt 0:01:17]} 2. Nf3 {[%emt 0:00:12]} e6 {[%emt 0:01:00]} 3. d4 {[%emt 0:00:54]} cxd4 {[%emt 0:01:12]} 4. Nxd4 {[%emt 0:00:09]} a6 {[%emt 0:00:11]} 5. Nc3 {[%emt 0:00:48]} Qc7 {[%emt 0:02:27]} 6. Bd3 {[%emt 0:02:06]} Nc6 {[%emt 0:01:34]} 7. Nb3 {[%emt 0:03:02]} Nf6 {[%emt 0:03:38]} 8. O-O {[%emt 0:01:20]} Be7 {[%emt 0:00:41]} 9. f4 {[%emt 0:01:24]} d6 {[%emt 0:00:55]} 10. Qe2 {[%emt 0:02:52]} b5 {[%emt 0:02:07]} 11. Bd2 {[%emt 0:07:19]} Bb7 {[%emt 0:03:56]} 12. Rae1 {[%emt 0:02:24]} e5 {[%emt 0:05:45]} 13. Nd5 {[%emt 0:02:43]} Qd8 {[%emt 0:01:49]} 14. c4 {[%emt 0:04:04]} b4 {[%emt 0:04:30]} 15. Qf2 {[%emt 0:09:23]} a5 {[%emt 0:01:38]} 16. Qg3 {[%emt 0:02:53]} O-O {[%emt 0:09:54]} 17. f5 {[%emt 0:09:26]} Kh8 {[%emt 0:00:20]} 18. Qh3 {[%emt 0:05:18]} Bc8 {[%emt 0:04:01]} 19. g4 {[%emt 0:03:20]} Ng8 {[%emt 0:08:43]} 20. Be3 {[%emt 0:08:43]} a4 {[%emt 0:02:13]} 21. Nd2 {[%emt 0:01:39]} Rb8 {[%emt 0:01:42]} 22. b3 {[%emt 0:02:50]} a3 {[%emt 0:00:26]} 23. Rc1 {[%emt 0:00:52]} Bd7 {[%emt 0:04:40]} 24. c5 {[%emt 0:04:03]} dxc5 {[%emt 0:00:27]} 25. Nxe7 {[%emt 0:02:24]} Ngxe7 {[%emt 0:01:14]} 26. Bxc5 {[%emt 0:01:01]} Re8 {[%emt 0:00:49]} 27. Bc4 {[%emt 0:01:17]} Rf8 {[%emt 0:00:57]} 28. f6 {[%emt 0:01:07]} gxf6 {[%emt 0:01:03]} 29. Qf3 {[%emt 0:02:20]} f5 {[%emt 0:02:27]} 30. exf5 {[%emt 0:03:16]} f6 {[%emt 0:04:55]} 31. Ne4 {[%emt 0:01:36]} Na5 {[%emt 0:02:07]} 32. Be6 {[%emt 0:04:43]} Bc6 {[%emt 0:03:00]} 33. Rfd1 {[%emt 0:01:01]} Qc7 {[%emt 0:01:12]} 34. Bd6 {[%emt 0:00:17]} Qa7+ {[%emt 0:00:11]} 35. Qf2 {[%emt 0:02:11]} Rb7 {[%emt 0:01:29]} 36. Bc5 {[%emt 0:02:00]} Qb8 {[%emt 0:00:43]} 37. Nd6 {[%emt 0:00:19]} Kg7 {[%emt 0:02:40]} 38. Nxb7 {[%emt 0:00:32]} Qxb7 {[%emt 0:00:05]} 39. Bxe7 {[%emt 0:00:55]} Re8 {[%emt 0:01:56]} 40. Bd6 {[%emt 0:00:00]} Qa6 {[%emt 0:00:00]} 41. Bxb4 {[%emt 0:01:57]} Nb7 {[%emt 0:02:26]} 42. Bxa3 {[%emt 0:01:39]} Bb5 {[%emt 0:00:27]} 43. Rc7+ {[%emt 0:00:14]} Kh8 {[%emt 0:00:18]} 44. Be7 {[%emt 0:00:20]} Kg7 {[%emt 0:00:52]} 45. Bd8+ {[%emt 0:00:08]} Kf8 {[%emt 0:00:15]} 46. Rf7+ {[%emt 0:00:06]} Kg8 {[%emt 0:00:09]} 47. Bxf6 {[%emt 0:01:24]} Rxe6 {[%emt 0:01:30]} 48. fxe6 {[%emt 0:00:40]} Qxe6 {[%emt 0:00:03]} 49. Rg7+ {[%emt 0:00:15]} Kf8 {[%emt 0:00:06]} 50. Bxe5+ {[%emt 0:00:33]} Ke8 {[%emt 0:00:08]} 51. Re1 {[%emt 0:00:51]} Qd5 {[%emt 0:00:30]} 52. Bc7+ {[%emt 0:00:16]} Be2 {[%emt 0:00:28]} 53. Rxe2+ {[%emt 0:00:15]} Qe4 {[%emt 0:00:04]} 54. Rxe4# 1-0